bitfinex/quotes_BTCUSD_20250127
["timestamp","ask_amount","ask_price","bid_price","bid_amount"]
[1737996779186,0.150111,99926.0,99925.0,0.00049531]
[1737996779387,0.00920477,99931.0,99925.0,0.0978426]
[1737996779573,0.00920477,99931.0,99926.0,0.09734729]
[1737996779802,0.150094,99937.0,99928.0,0.150107]
[1737996780112,0.00920477,99936.0,99930.0,0.150105]
[1737996780344,0.00920477,99936.0,99931.0,0.09734729]
[1737996780537,0.0794,99944.0,99931.0,0.09734729]
[1737996780751,0.00920477,99940.0,99933.0,0.200134]
[1737996780887,0.0794,99944.0,99934.0,0.09734729]
[1737996781085,0.00920477,99952.0,99934.0,0.09734729]
[1737996781309,0.0762,99960.0,99935.0,0.274858]
[1737996781310,0.009,99936.0,99935.0,0.274858]
[1737996781520,0.00920477,99958.0,99936.0,0.023]
[1737996781715,0.00920477,99957.0,99937.0,0.10176552]
[1737996781922,0.00920477,99957.0,99954.0,0.150067]
[1737996782121,0.00920477,99957.0,99938.0,0.023]
[1737996782432,0.00920477,99957.0,99937.0,0.08176552]
[1737996782433,0.00920477,99950.0,99939.0,0.10176552]
[1737996782631,0.00920477,99952.0,99939.0,0.10176552]
[1737996782837,0.195543,99972.0,99941.0,0.150088]
[1737996783037,0.00920477,99972.0,99945.0,0.023]
[1737996783267,0.00920477,99988.0,99957.0,0.09734729]
[1737996783422,0.150027,99982.0,99977.0,0.150033]
[1737996783624,0.150027,99982.0,99962.0,0.023]
[1737996783625,0.150024,99984.0,99978.0,0.09734729]
[1737996783904,0.15923377,99981.0,99975.0,0.350085]
[1737996784111,0.00920477,99981.0,99980.0,0.15003]
[1737996784257,0.00920477,99981.0,99976.0,0.09734729]
[1737996784455,0.00935362,99981.0,99980.0,0.15003]
[1737996784656,0.150034,99977.0,99976.0,0.09734729]
[1737996784902,0.00920477,99956.0,99929.0,0.02012133]
[1737996785112,0.02,99964.0,99939.0,0.01348161]
[1737996785113,0.00920477,99953.0,99939.0,0.01348161]
[1737996785322,0.00920477,99953.0,99948.0,0.150076]
[1737996785521,0.00920477,99965.0,99950.0,0.023]
[1737996785754,0.00920477,99965.0,99958.0,0.200083]
[1737996785921,0.00920477,99965.0,99959.0,0.09734729]
[1737996786131,0.00920477,99965.0,99962.0,0.150056]
[1737996786332,0.150054,99964.0,99962.0,0.09734729]
[1737996786552,0.150054,99964.0,99758.0,0.5]
[1737996786553,0.15927077,99956.0,99949.0,0.150075]
[1737996786755,0.00920477,99965.0,99952.0,0.023]
[1737996786929,0.00920477,99956.0,99952.0,0.09734729]
[1737996787413,0.150067,99955.0,99952.0,0.09734729]
[1737996787615,0.00920477,99956.0,99953.0,0.150069]
[1737996787831,0.00920477,99956.0,99955.0,0.150067]
[1737996788031,0.00920477,99964.0,99955.0,0.09734729]
[1737996788418,0.001,99965.0,99957.0,0.200085]
[1737996788608,0.001,99965.0,99958.0,0.09734729]
[1737996788744,0.01020477,99965.0,99961.0,0.150057]
[1737996788945,0.001,99965.0,99964.0,0.150054]
[1737996789169,0.15017785,99981.0,99964.0,0.27040129]
[1737996789372,0.00935362,99981.0,99965.0,0.09734729]
[1737996789728,0.00014885,99981.0,99980.0,0.15003]
[1737996789947,0.00935362,99981.0,99969.0,0.200062]
[1737996790154,0.00920477,99976.0,99970.0,0.09734729]
[1737996790358,0.00920477,99966.0,99941.0,0.400236]
[1737996790573,0.350122,99965.0,99956.0,0.150065]
[1737996790775,0.150064,99958.0,99957.0,0.09734729]
[1737996790995,0.00920477,99961.0,99957.0,0.09734729]
[1737996791207,0.00920477,99961.0,99957.0,0.24741029]
[1737996791412,0.15006,99960.0,99957.0,0.09734729]
[1737996791623,0.00920477,99961.0,99957.0,0.09734729]
[1737996791796,0.00920477,99961.0,99957.0,0.24741129]
[1737996792415,0.02,99966.0,99942.0,0.150086]
[1737996792416,0.150078,99948.0,99942.0,0.150086]
[1737996792625,0.150089,99941.0,99935.0,0.150097]
[1737996792833,0.00920477,99942.0,99936.0,0.09734729]
[1737996793032,0.150088,99941.0,99936.0,0.09734729]
[1737996793266,0.00920477,99942.0,99936.0,0.09734729]
[1737996793473,0.00920477,99951.0,99938.0,0.023]
[1737996793683,0.15008,99947.0,99939.0,0.29746929]
[1737996793893,0.2001,99950.0,99910.0,0.31429973]
[1737996793894,0.00920477,99940.0,99916.0,0.02041322]
[1737996794098,0.00920477,99940.0,99929.0,0.0001416]
[1737996794271,0.00920477,99936.0,99930.0,0.09734729]
[1737996794474,0.00920477,99936.0,99931.0,0.150103]
[1737996794690,0.00920477,99936.0,99932.0,0.09734729]
[1737996795021,0.20932277,99941.0,99929.0,0.0001416]
[1737996795232,0.00920477,99934.0,99930.0,0.09734729]
[1737996795441,0.001,99942.0,99930.0,0.09734729]
[1737996795652,0.00920477,99945.0,99931.0,0.023]
[1737996795855,0.00920477,99945.0,99932.0,0.09734729]
[1737996796052,0.001,99940.0,99939.0,0.150091]
[1737996796257,0.00920477,99945.0,99939.0,0.09734729]
[1737996796459,0.00920477,99945.0,99929.0,0.0001416]
[1737996796691,0.00920477,99930.0,99929.0,0.0001416]
[1737996796890,0.15930977,99930.0,99929.0,0.0001416]
[1737996797302,0.17930977,99930.0,99929.0,0.0001416]
[1737996797910,0.15930977,99930.0,99929.0,0.0001416]
[1737996798117,0.17930977,99930.0,99929.0,0.0001416]
[1737996798572,0.15930977,99930.0,99929.0,0.0001416]
[1737996798742,0.17930977,99930.0,99929.0,0.0001416]
[1737996799155,0.18730977,99930.0,99929.0,0.0001416]
[1737996799328,0.16730977,99930.0,99929.0,0.0001416]
[1737996799866,0.15930977,99930.0,99929.0,0.0001416]
[1737996800069,0.17930977,99930.0,99929.0,0.0001416]
[1737996800288,0.18730977,99930.0,99929.0,0.0001416]
[1737996801143,0.16730977,99930.0,99929.0,0.0001416]
[1737996801343,0.01720477,99930.0,99929.0,0.0001416]
[1737996801632,0.008,99930.0,99929.0,0.1502476]
[1737996801845,0.01720477,99930.0,99929.0,0.0001416]
[1737996802016,0.01720477,99930.0,99929.0,0.1502476]
[1737996802237,0.00920477,99930.0,99929.0,0.1502476]
[1737996802522,0.01720477,99930.0,99929.0,0.1502476]
[1737996802734,0.00920477,99930.0,99929.0,0.0001416]
[1737996802951,0.15930977,99930.0,99929.0,0.0001416]
[1737996803727,0.16956062,99930.0,99929.0,0.0001416]
[1737996803927,0.1199367,99930.0,99929.0,0.0001416]
[1737996804131,0.13993674,99930.0,99929.0,0.0001416]
[1737996804329,0.18493674,99930.0,99929.0,0.0001416]
[1737996804558,0.18493674,99930.0,99922.0,0.00049531]
[1737996804559,0.320115,99923.0,99922.0,0.00049531]
[1737996804732,0.320133,99911.0,99909.0,0.0001418]
[1737996804936,0.41748029,99911.0,99910.0,0.00028945]
[1737996805294,0.330135,99910.0,99909.0,2.5e-07]
[1737996805500,0.42748229,99910.0,99909.0,2.5e-07]
[1737996805698,0.0759,99908.0,99886.0,0.08894306]
[1737996805832,0.170156,99896.0,99895.0,0.01523709]
[1737996806029,0.26750329,99896.0,99895.0,0.01523709]
[1737996806233,0.41750329,99896.0,99895.0,0.01523709]
[1737996806444,0.02,99887.0,99886.0,0.0045986]
[1737996806668,0.57754089,99887.0,99886.0,0.0045986]
[1737996806902,0.60054089,99887.0,99886.0,0.0045986]
[1737996807103,0.60054089,99887.0,99886.0,6e-07]
[1737996807630,0.170208,99861.0,99860.0,0.0021418]
[1737996807843,0.41755529,99861.0,99860.0,0.0021418]
[1737996808051,0.46054832,99861.0,99860.0,0.0021418]
[1737996808259,0.57099047,99861.0,99860.0,0.0021418]
[1737996808474,0.63915438,99861.0,99860.0,0.0021418]
[1737996808896,0.5612192,99861.0,99860.0,0.0021418]
[1737996809327,0.67291423,99861.0,99860.0,0.0021418]
[1737996809747,0.64697208,99861.0,99860.0,0.0021418]
[1737996809959,0.170255,99830.0,99829.0,0.0001416]
[1737996810164,0.17150728,99830.0,99829.0,0.00029069]
[1737996810640,0.170306,99796.0,99795.0,0.0151381]
[1737996810854,0.26765329,99796.0,99795.0,0.0151381]
[1737996811083,0.49842181,99796.0,99795.0,0.0151381]
[1737996811529,0.32032,99787.0,99738.0,0.200524]
[1737996811779,0.39766729,99787.0,99749.0,0.150377]
[1737996812012,0.46349366,99787.0,99751.0,0.200498]
[1737996812218,0.02014854,99787.0,99758.0,0.200484]
[1737996812456,0.02014854,99787.0,99781.0,0.150328]
[1737996812457,0.00014854,99787.0,99781.0,0.150328]
[1737996812691,0.00014854,99787.0,99786.0,0.00572645]
[1737996812918,0.00014854,99787.0,99786.0,0.42080989]
[1737996813143,0.00014854,99787.0,99786.0,0.42639474]
[1737996813775,0.00914854,99787.0,99786.0,0.42639474]
[1737996813951,0.00014854,99787.0,99786.0,0.42639474]
[1737996814180,0.00100054,99787.0,99786.0,0.42639474]
[1737996814620,5.4e-07,99787.0,99786.0,0.0001416]
[1737996815239,0.02000054,99787.0,99786.0,0.0001416]
[1737996815471,0.26766783,99787.0,99786.0,0.0001416]
[1737996815854,0.26866783,99787.0,99786.0,0.0001416]
[1737996816174,0.26766783,99787.0,99786.0,0.0001416]
[1737996816390,0.34843635,99787.0,99786.0,0.0001416]
[1737996816566,0.02900054,99787.0,99786.0,0.0001416]
[1737996816816,0.26766783,99787.0,99786.0,0.0001416]
[1737996816997,0.34843635,99787.0,99786.0,0.0001416]
[1737996817222,0.31160998,99787.0,99786.0,0.0001416]
[1737996817444,0.30260998,99787.0,99786.0,0.0013166]
[1737996817621,0.34843635,99787.0,99786.0,0.0013166]
[1737996817818,0.35743635,99787.0,99786.0,0.0013166]
[1737996818078,0.63533635,99787.0,99786.0,0.0013166]
[1737996818287,0.64533635,99787.0,99786.0,0.0013166]
[1737996818501,0.02,99746.0,99732.0,0.200535]
[1737996818709,0.02,99744.0,99729.0,0.200543]
[1737996818860,0.02,99746.0,99734.0,0.150398]
[1737996819057,0.02,99742.0,99731.0,0.200538]
[1737996819265,0.02,99742.0,99735.0,0.00455431]
[1737996819465,0.02,99742.0,99735.0,0.150397]
[1737996819680,0.02,99742.0,99736.0,0.00476547]
[1737996820100,0.001,99746.0,99736.0,0.00476547]
[1737996820306,0.001,99746.0,99737.0,0.023]
[1737996820479,0.02,99749.0,99741.0,0.023]
[1737996820691,0.00125322,99755.0,99741.0,0.223518]
[1737996821009,0.001,99742.0,99741.0,0.223518]
[1737996821410,0.02,99761.0,99741.0,0.09734729]
[1737996821612,0.00125304,99772.0,99742.0,0.12034729]
[1737996821845,0.02,99771.0,99756.0,0.023]
[1737996822016,0.02,99771.0,99735.0,0.00049703]
[1737996822017,0.02,99777.0,99760.0,0.023]
[1737996822261,0.02,99779.0,99776.0,0.023]
[1737996822470,0.02,99774.0,99761.0,0.09734729]
[1737996822677,0.02,99774.0,99770.0,0.023]
[1737996822888,0.02,99774.0,99773.0,0.150341]
[1737996823101,0.02,99774.0,99759.0,0.200482]
[1737996823311,0.02,99770.0,99745.0,0.35051]
[1737996823520,0.02,99764.0,99745.0,0.00049703]
[1737996823738,0.150346,99770.0,99758.0,0.150363]
[1737996823951,0.02,99764.0,99745.0,0.00049703]
[1737996824163,0.02,99764.0,99754.0,0.150369]
[1737996824369,0.02,99764.0,99746.0,0.09734729]
[1737996824582,0.02,99769.0,99747.0,0.023]
[1737996824795,0.009,99764.0,99749.0,0.023]
[1737996824993,0.029,99764.0,99755.0,0.150367]
[1737996825203,0.029,99764.0,99753.0,0.15037]
[1737996825350,0.029,99764.0,99745.0,0.00049703]
[1737996825351,0.01996,99761.0,99745.0,0.00049703]
[1737996825552,0.01996,99760.0,99748.0,0.023]
[1737996825802,0.01996,99760.0,99755.0,0.023]
[1737996826043,0.01996,99760.0,99748.0,0.150378]
[1737996826201,0.01996,99760.0,99750.0,0.150375]
[1737996826403,0.01996,99760.0,99751.0,0.023]
[1737996826661,0.01996,99764.0,99755.0,0.023]
[1737996826895,0.01996,99761.0,99755.0,0.023]
[1737996827092,0.150362,99759.0,99751.0,0.150374]
[1737996827298,0.01996,99756.0,99753.0,0.150371]
[1737996827504,0.009,99764.0,99746.0,0.401018]
[1737996827706,0.01996,99757.0,99756.0,0.173366]
[1737996827907,0.009,99764.0,99756.0,0.173366]
[1737996827908,0.02896,99764.0,99757.0,0.023]
[1737996828111,0.01996,99762.0,99761.0,0.150359]
[1737996828338,0.02896,99764.0,99762.0,0.023]
[1737996828543,0.01996,99764.0,99762.0,0.023]
[1737996828718,0.01996,99764.0,99763.0,0.023]
[1737996828959,0.01996,99770.0,99763.0,0.023]
[1737996829133,0.01996,99770.0,99769.0,0.150346]
[1737996829568,0.01996,99770.0,99769.0,0.00471233]
[1737996829783,0.170305,99770.0,99769.0,0.00471233]
[1737996829992,0.01987672,99750.0,99732.0,0.01272551]
[1737996830214,0.200491,99755.0,99732.0,0.01272551]
[1737996830215,0.17025772,99746.0,99732.0,0.200536]
[1737996830832,0.17025772,99746.0,99727.0,0.200545]
[1737996831037,0.17111098,99746.0,99727.0,0.150409]
[1737996831442,0.17111098,99746.0,99728.0,0.150407]
[1737996831646,0.17099575,99746.0,99728.0,0.150407]
[1737996831863,0.17999575,99746.0,99729.0,0.150406]
[1737996832068,0.17999575,99746.0,99725.0,0.150413]
[1737996832276,0.27734304,99746.0,99710.0,0.20058]
[1737996832476,0.27608978,99746.0,99714.0,0.200571]
[1737996832677,0.27608978,99746.0,99710.0,0.20058]
[1737996832886,0.17874249,99746.0,99730.0,0.200539]
[1737996833088,0.17874249,99746.0,99716.0,0.200568]
[1737996833089,0.02887672,99746.0,99717.0,0.023]
[1737996833304,0.01987672,99749.0,99746.0,0.150381]
[1737996833504,0.01987672,99749.0,99740.0,0.200521]
[1737996833708,0.01987672,99749.0,99741.0,0.200517]
[1737996833709,0.009,99746.0,99741.0,0.200517]
[1737996833912,0.009,99746.0,99745.0,0.15088003]
[1737996834114,0.009,99746.0,99745.0,0.00049703]
[1737996834319,0.018,99746.0,99745.0,0.15088003]
[1737996834521,0.01807712,99753.0,99752.0,0.150372]
[1737996834722,0.01987672,99761.0,99745.0,0.02349703]
[1737996834908,0.009,99749.0,99748.0,0.150378]
[1737996835114,0.009,99749.0,99745.0,0.15087903]
[1737996835243,0.01987672,99760.0,99745.0,0.00049703]
[1737996835445,0.01987672,99760.0,99759.0,0.150361]
[1737996835650,0.01987672,99760.0,99753.0,0.200495]
[1737996835847,0.200452,99775.0,99746.0,0.09734729]
[1737996836070,0.20046,99771.0,99760.0,0.15036]
[1737996836247,0.02903396,99766.0,99760.0,0.15036]
[1737996836466,0.02903396,99766.0,99765.0,0.150353]
[1737996837565,0.00929779,99770.0,99769.0,0.150347]
[1737996837768,0.00029779,99770.0,99769.0,0.150347]
[1737996838633,0.0185116,99770.0,99769.0,0.27069429]
[1737996839927,0.0185116,99770.0,99754.0,0.200491]
[1737996839928,0.200467,99767.0,99754.0,0.200491]
[1737996840134,0.01987672,99766.0,99750.0,0.17371155]
[1737996840341,0.01987672,99765.0,99750.0,0.17371155]
[1737996840546,0.01987672,99754.0,99741.0,0.200518]
[1737996840793,0.200495,99753.0,99730.0,0.17371155]
[1737996840993,0.150381,99746.0,99734.0,0.200532]
[1737996841208,0.150381,99746.0,99737.0,0.150395]
[1737996841637,0.01987672,99747.0,99738.0,0.200525]
[1737996841842,0.150381,99746.0,99730.0,0.17371155]
[1737996842063,0.150381,99746.0,99720.0,0.17371155]
[1737996842064,0.26760501,99746.0,99720.0,0.17371155]
[1737996842274,0.26760501,99746.0,99716.0,0.200567]
[1737996842476,0.26760501,99746.0,99710.0,0.37429255]
[1737996842687,0.28583292,99746.0,99720.0,0.17371155]
[1737996842895,0.28583292,99746.0,99720.0,0.2681041]
[1737996843101,0.28583292,99746.0,99716.0,0.200568]
[1737996843323,0.28583292,99746.0,99721.0,0.22486068]
[1737996843530,0.2659562,99746.0,99721.0,0.22486068]
[1737996843737,0.18848563,99746.0,99729.0,0.200542]
[1737996843968,0.29008625,99746.0,99721.0,0.22486068]
[1737996844173,0.28583292,99746.0,99721.0,0.02430168]
[1737996844627,0.29483292,99746.0,99721.0,0.02430168]
[1737996844839,0.37729554,99746.0,99702.0,0.200597]
[1737996845047,0.37729554,99746.0,99745.0,0.00063883]
[1737996845267,0.34073292,99746.0,99745.0,0.00063883]
[1737996845481,0.33173292,99746.0,99745.0,0.00063883]
[1737996845697,0.150449,99702.0,99696.0,0.150456]
[1737996845930,0.01987672,99696.0,99694.0,0.01646143]
[1737996846130,0.0794,99716.0,99694.0,0.01646143]
[1737996846131,0.17033472,99695.0,99694.0,0.01646143]
[1737996846333,0.17158861,99695.0,99694.0,0.01646143]
[1737996846537,0.17033472,99695.0,99694.0,0.01646143]
[1737996846965,0.17158864,99695.0,99694.0,0.01646143]
[1737996847219,0.200595,99703.0,99694.0,0.01646143]
[1737996847399,0.18856166,99695.0,99694.0,0.01646143]
[1737996847826,0.01822694,99695.0,99694.0,0.13680872]
[1737996848033,0.01808586,99695.0,99694.0,0.16692143]
[1737996848487,0.01808586,99695.0,99694.0,0.26426872]
[1737996848660,0.0768,99729.0,99695.0,0.023]
[1737996848865,0.01987672,99717.0,99710.0,0.150435]
[1737996849100,0.150418,99722.0,99708.0,0.200584]
[1737996849279,0.0768,99729.0,99711.0,0.09734729]
[1737996849714,0.0805,99744.0,99712.0,0.023]
[1737996849927,0.0805,99744.0,99740.0,0.15039]
[1737996850130,0.01987672,99731.0,99714.0,0.023]
[1737996850339,0.01987672,99731.0,99730.0,0.150406]
[1737996850552,0.08175334,99744.0,99733.0,0.150401]
[1737996850553,0.01987672,99734.0,99733.0,0.150401]
[1737996850763,0.0805,99744.0,99716.0,0.023]
[1737996851008,0.01987672,99746.0,99740.0,0.20052]
[1737996851220,0.01987672,99740.0,99729.0,0.200543]
[1737996851384,0.01987672,99740.0,99729.0,0.000148]
[1737996851617,0.01987672,99740.0,99739.0,0.150392]
[1737996851803,0.01987672,99740.0,99729.0,0.000148]
[1737996852005,0.01987672,99740.0,99737.0,0.150395]
[1737996852215,0.01987672,99740.0,99739.0,0.150391]
[1737996852454,0.02914599,99745.0,99744.0,0.150384]
[1737996852778,0.02914599,99756.0,99738.0,0.023]
[1737996853001,0.02914599,99756.0,99755.0,0.150368]
[1737996854022,0.01987672,99758.0,99755.0,0.150368]
[1737996854232,0.200467,99767.0,99739.0,0.200523]
[1737996854233,0.01987672,99751.0,99739.0,0.200523]
[1737996854446,0.01987672,99751.0,99748.0,0.150378]
[1737996854655,0.00125316,99761.0,99747.0,0.200507]
[1737996854861,0.01987672,99751.0,99734.0,0.200532]
[1737996855084,0.01987672,99751.0,99747.0,0.15038]
[1737996855287,0.150368,99756.0,99749.0,0.150376]
[1737996855483,0.02087672,99751.0,99750.0,0.150375]
[1737996855690,0.001,99751.0,99750.0,0.150375]
[1737996855889,0.01987672,99752.0,99751.0,0.150374]
[1737996856098,0.02912402,99755.0,99754.0,0.150369]
[1737996856716,0.150347,99769.0,99717.0,0.470593]
[1737996856902,0.200463,99769.0,99759.0,0.150362]
[1737996857112,0.15035,99767.0,99759.0,0.150362]
[1737996857384,0.01987672,99769.0,99751.0,0.023]
[1737996857587,0.0464,99775.0,99769.0,0.150347]
[1737996857731,0.01987672,99768.0,99763.0,0.200473]
[1737996857915,0.0464,99775.0,99752.0,0.09734729]
[1737996858116,0.01987672,99759.0,99758.0,0.150363]
[1737996858316,0.150367,99756.0,99752.0,0.000148]
[1737996858571,0.17024772,99753.0,99752.0,0.000148]
[1737996858947,0.17150092,99753.0,99752.0,0.000148]
[1737996860409,0.44147772,99753.0,99752.0,1e-08]
[1737996860614,0.01987672,99716.0,99712.0,0.150433]
[1737996860845,0.01987672,99726.0,99712.0,0.09734729]
[1737996861061,0.150408,99729.0,99715.0,0.200571]
[1737996861257,0.150433,99712.0,99711.0,0.08913853]
[1737996861457,0.17030972,99712.0,99711.0,0.08913853]
[1737996862068,0.17030972,99712.0,99711.0,0.00014897]
[1737996862263,0.18976796,99712.0,99711.0,0.00014897]
[1737996862664,0.19076796,99712.0,99711.0,0.00014897]
[1737996863027,0.18951416,99712.0,99711.0,0.00014897]
[1737996863448,0.16963744,99712.0,99711.0,0.00014897]
[1737996863677,0.151433,99712.0,99711.0,0.00014897]
[1737996863897,0.17130972,99712.0,99711.0,0.00014897]
[1737996864102,0.150433,99712.0,99711.0,0.00014897]
[1737996864529,0.009,99712.0,99711.0,0.00014897]
[1737996864668,0.150433,99712.0,99711.0,0.00014897]
[1737996864865,0.150416,99723.0,99711.0,0.00014897]
[1737996865071,0.009,99712.0,99711.0,0.00014897]
[1737996865267,0.0785,99725.0,99711.0,0.00014897]
[1737996865268,0.01987672,99722.0,99711.0,0.00014897]
[1737996865475,0.01987672,99712.0,99711.0,0.00014897]
[1737996865821,0.17930972,99712.0,99711.0,0.00014897]
[1737996866115,0.17030972,99712.0,99711.0,0.00014897]
[1737996867490,0.150433,99712.0,99711.0,0.00014897]
[1737996867691,0.17030972,99712.0,99711.0,0.00014897]
[1737996868231,0.17930972,99712.0,99711.0,0.00014897]
[1737996868389,0.17030972,99712.0,99711.0,0.00014897]
[1737996868613,0.159433,99712.0,99711.0,0.00014897]
[1737996869043,0.17930972,99712.0,99711.0,0.00014897]
[1737996869361,0.159433,99712.0,99711.0,0.00014897]
[1737996869929,0.009,99712.0,99711.0,0.00014897]
[1737996870158,0.02887672,99712.0,99711.0,0.00014897]
[1737996870363,0.009,99712.0,99711.0,0.00014897]
[1737996870813,0.02887672,99712.0,99711.0,0.00014897]
[1737996870989,0.150429,99715.0,99711.0,0.00014897]
[1737996871215,0.17030572,99715.0,99711.0,0.00014897]
[1737996871423,0.009,99712.0,99711.0,0.15058297]
[1737996871775,0.009,99712.0,99711.0,0.00014897]
[1737996872168,0.01987672,99712.0,99711.0,0.00014897]
[1737996872309,0.01987672,99717.0,99711.0,0.00014897]
[1737996872547,0.009,99715.0,99712.0,0.150431]
[1737996872801,0.01987672,99717.0,99700.0,0.023]
[1737996873114,0.009,99712.0,99705.0,0.150442]
[1737996873345,0.009,99712.0,99703.0,0.0001465]
[1737996873558,0.17032172,99704.0,99703.0,0.0001465]
[1737996873763,0.17032172,99704.0,99703.0,5e-07]
[1737996873764,0.30601372,99704.0,99703.0,5e-07]
[1737996873991,0.17033372,99696.0,99695.0,0.0001419]
[1737996874192,0.26893511,99696.0,99695.0,0.0001419]
[1737996874419,0.26768101,99696.0,99695.0,0.0001419]
[1737996874591,0.41768101,99696.0,99695.0,0.0001419]
[1737996874999,0.39780429,99696.0,99695.0,0.0001419]
[1737996875212,0.26768101,99696.0,99695.0,0.0001419]
[1737996875414,0.24780429,99696.0,99695.0,0.0001419]
[1737996875616,0.17933372,99696.0,99695.0,0.0001419]
[1737996875819,0.01987672,99696.0,99695.0,0.0001419]
[1737996876026,0.17033372,99696.0,99695.0,0.0001419]
[1737996876258,0.02887672,99696.0,99695.0,0.0001419]
[1737996876469,0.17033372,99696.0,99695.0,0.0001419]
[1737996877880,0.01987672,99698.0,99695.0,0.0001419]
[1737996878119,0.01987672,99699.0,99695.0,0.0001419]
[1737996878245,0.01987672,99702.0,99695.0,0.0001419]
[1737996878451,0.02718868,99696.0,99695.0,0.0001419]
[1737996878718,0.01818868,99696.0,99695.0,0.0001419]
[1737996878879,0.0380654,99696.0,99695.0,0.0001419]
[1737996879081,0.01818868,99696.0,99695.0,0.1505999]
[1737996879283,0.01818868,99696.0,99695.0,0.27094719]
[1737996879731,0.009,99696.0,99695.0,0.27094719]
[1737996879952,0.009,99696.0,99695.0,0.42094719]
[1737996880154,0.009,99696.0,99695.0,0.45050423]
[1737996880366,0.009,99696.0,99695.0,0.28273902]
[1737996881331,0.009,99696.0,99695.0,0.27094719]
[1737996881599,0.0001488,99704.0,99703.0,0.150446]
[1737996883386,0.0091488,99704.0,99703.0,0.150446]
[1737996884305,0.0091488,99704.0,99703.0,0.27079329]
[1737996884741,0.0001488,99704.0,99703.0,0.77242519]
[1737996885156,0.0091488,99704.0,99703.0,0.77242519]
[1737996885367,0.0001488,99704.0,99703.0,0.77242519]
[1737996885765,0.0081488,99704.0,99703.0,0.77242519]
[1737996887542,0.0081488,99704.0,99703.0,0.5016319]
[1737996887744,0.0081488,99704.0,99703.0,0.6520779]
[1737996887950,0.0001488,99704.0,99703.0,0.6520779]
[1737996888203,0.0081488,99704.0,99703.0,0.6520779]
[1737996888404,0.0081488,99704.0,99703.0,0.5016319]
[1737996888606,0.17847052,99704.0,99703.0,0.5016319]
[1737996888834,0.19673295,99704.0,99703.0,0.5016319]
[1737996889132,0.18873295,99704.0,99703.0,0.5016319]
[1737996889336,0.18973295,99704.0,99703.0,0.5016319]
[1737996889671,0.18873295,99704.0,99703.0,0.5016319]
[1737996890899,0.23050313,99704.0,99703.0,0.5016319]
[1737996891253,0.23950313,99704.0,99703.0,0.5016319]
[1737996891636,0.23050313,99704.0,99703.0,0.5016319]
[1737996892221,0.31530013,99704.0,99703.0,0.5016319]
[1737996892448,0.32430013,99704.0,99703.0,0.5016319]
[1737996892646,0.31530013,99704.0,99703.0,0.5016319]
[1737996893053,0.56264742,99704.0,99703.0,0.4013319]
[1737996893268,0.56264742,99704.0,99703.0,0.2331119]
[1737996893269,0.65054742,99704.0,99703.0,0.2331119]
[1737996894108,0.64054742,99704.0,99703.0,0.1328119]
[1737996894313,0.64054742,99704.0,99703.0,0.09168448]
[1737996894536,0.64154742,99704.0,99703.0,0.09168448]
[1737996895182,0.65054742,99704.0,99703.0,0.09168448]
[1737996895384,0.64154742,99704.0,99703.0,4.8e-07]
[1737996895740,0.53505256,99704.0,99703.0,4.8e-07]
[1737996896368,0.38505256,99704.0,99703.0,4.8e-07]
[1737996897457,0.53505256,99704.0,99703.0,4.8e-07]
[1737996897643,0.53535056,99704.0,99703.0,4.8e-07]
[1737996897843,0.32032572,99701.0,99700.0,0.03]
[1737996898155,0.41767301,99701.0,99700.0,0.03]
[1737996898280,0.26767301,99701.0,99700.0,0.03]
[1737996898482,0.24779629,99701.0,99700.0,0.03]
[1737996899008,0.17932572,99701.0,99700.0,0.03]
[1737996899209,0.01987672,99701.0,99700.0,0.03]
[1737996899417,0.03813915,99701.0,99700.0,0.03]
[1737996899622,0.19758815,99701.0,99700.0,0.03]
[1737996899800,0.04713915,99701.0,99700.0,0.03]
[1737996900019,0.02726243,99701.0,99700.0,0.180451]
[1737996900197,0.02726243,99701.0,99700.0,0.30079829]
[1737996900663,0.009,99701.0,99700.0,0.30079829]
[1737996900873,0.0004468,99704.0,99703.0,0.150446]
[1737996901101,0.0004468,99704.0,99703.0,0.27079329]
[1737996901578,0.0004468,99704.0,99703.0,0.45153575]
[1737996902205,0.0004468,99704.0,99703.0,0.30153575]
[1737996902639,0.0074468,99704.0,99703.0,0.30153575]
[1737996902821,0.0004468,99704.0,99703.0,0.30153575]
[1737996903063,8e-07,99704.0,99703.0,0.54263575]
[1737996903271,0.000298,99716.0,99715.0,0.323428]
[1737996903481,0.000298,99716.0,99715.0,0.52112739]
[1737996903690,0.000298,99716.0,99715.0,0.55186985]
[1737996903911,0.01822985,99751.0,99715.0,0.55186985]
[1737996903912,0.01822985,99751.0,99718.0,0.01]
[1737996904115,0.01822985,99764.0,99754.0,0.150369]
[1737996904329,0.0004471,99755.0,99754.0,0.77194629]
[1737996904541,0.0004471,99755.0,99754.0,0.80268875]
[1737996905448,0.0074471,99755.0,99754.0,0.80268875]
[1737996905656,0.0074471,99755.0,99754.0,0.95268875]
[1737996906128,0.00552813,99755.0,99754.0,0.95268875]
[1737996906362,1.0,99800.0,99769.0,0.173347]
[1737996906578,1.0,99800.0,99769.0,1.02215409]
[1737996906818,1.0,99800.0,99770.0,0.173]
[1737996907061,1.00014905,99800.0,99799.0,0.173302]
[1737996907278,1.00021351,99800.0,99799.0,0.77165929]
[1737996907763,1.17039023,99800.0,99799.0,0.50101]
[1737996908225,1.26773752,99800.0,99799.0,0.50101]
[1737996908468,1.17039023,99800.0,99799.0,0.50101]
[1737996910778,1.27673752,99800.0,99799.0,0.50201]
[1737996910984,1.41773752,99800.0,99799.0,0.39914939]
[1737996911200,2.18357684,99800.0,99799.0,0.09599517]
[1737996911404,0.17026072,99744.0,99743.0,0.08965541]
[1737996911815,0.150384,99744.0,99743.0,0.08965541]
[1737996912029,0.01987672,99744.0,99743.0,0.08965541]
[1737996912230,0.150375,99751.0,99743.0,0.08965541]
[1737996912449,0.150364,99758.0,99743.0,0.59094541]
[1737996912654,0.001,99744.0,99743.0,0.74833141]
[1737996912861,0.00106446,99744.0,99743.0,0.74848051]
[1737996913064,0.00106446,99744.0,99743.0,0.59809451]
[1737996913470,0.15144846,99744.0,99743.0,0.59809451]
[1737996913677,0.17132518,99744.0,99743.0,0.59809451]
[1737996913881,0.17032518,99744.0,99743.0,0.5014391]
[1737996914060,6.446e-05,99744.0,99743.0,0.74917239]
[1737996914294,0.00106446,99744.0,99743.0,0.77217239]